[Event "Slovakian ECo-C Extraliga 2024-25"]
[Site "Slovakia"]
[Date "2024.11.23"]
[Round "1.5"]
[White "Briestensky, Rastislav"]
[Black "Pasti, Aron"]
[Result "0-1"]
[ECO "B44"]
[WhiteElo "2263"]
[BlackElo "2355"]
[Annotator "RC"]
[PlyCount "172"]
[EventDate "2024.09.12"]
[EventType "team-tourn"]
[EventCountry "SVK"]
[SourceTitle "playchess.com"]
[Source "ChessBase"]
[SourceQuality "1"]
[TimeControl "5400+30"]

1. e4 {[%emt 0:00:02]} c5 {[%emt 0:00:07]} 2. Nf3 {[%emt 0:00:05]} e6 {[%emt 0:00:04]} 3. d4 {[%emt 0:00:12]} cxd4 {[%emt 0:00:03]} 4. Nxd4 {[%emt 0:00:09]} Nc6 {[%emt 0:00:04]} 5. Nxc6 {[%emt 0:02:25]} bxc6 {[%emt 0:00:24]} 6. c4 {[%emt 0:01:06]} Nf6 {[%emt 0:02:59]} 7. Nc3 {[%emt 0:06:44]} e5 {[%emt 0:00:01]} 8. Be3 {[%emt 0:03:48]} Qa5 {[%emt 0:00:54]} 9. Bd3 {[%emt 0:01:56]} Bc5 {[%emt 0:01:54]} 10. Bxc5 {[%emt 0:01:14]} Qxc5 {[%emt 0:00:03]} 11. O-O {[%emt 0:00:15]} d6 {[%emt 0:00:33]} 12. a3 {[%emt 0:05:13]} a5 {[%emt 0:00:48]} 13. Qc2 {[%emt 0:00:39]} Qa7 {[%emt 0:06:09]} 14. Rad1 {[%emt 0:06:43]} O-O {[%emt 0:02:00]} 15. Be2 {[%emt 0:00:30]} Rd8 {[%emt 0:03:04]} 16. b4 {[%emt 0:03:12]} axb4 {[%emt 0:01:37]} 17. axb4 {[%emt 0:00:05]} Be6 {[%emt 0:00:06]} 18. Rd2 {[%emt 0:02:19]} Rab8 {[%emt 0:08:37]} 19. Rb1 {[%emt 0:00:41]} Rd7 {[%emt 0:07:45]} 20. h3 {[%emt 0:04:11]} h6 {[%emt 0:00:48]} 21. Qd1 {[%emt 0:01:07]} Rdb7 {[%emt 0:13:12]} 22. Ra1 {[%emt 0:14:10]} Qb6 {[%emt 0:00:08]} 23. Ra4 {[%emt 0:02:08]} Qc7 {[%emt 0:02:00]} 24. Qb3 {[%emt 0:06:03]} Nd7 {[%emt 0:00:37]} 25. Qd1 {[%emt 0:10:27]} Nb6 {[%emt 0:01:06]} 26. Ra6 {[%emt 0:00:15]} Bxc4 {[%emt 0:00:27]} 27. b5 {[%emt 0:06:32]} cxb5 {[%emt 0:07:12]} 28. Nxb5 {[%emt 0:04:22]} Qc5 {[%emt 0:00:34]} 29. Bxc4 {[%emt 0:12:42]} Qxc4 {[%emt 0:01:00]} 30. Qe2 {[%emt 0:02:40]} d5 {[%emt 0:02:25]} 31. exd5 {[%emt 0:02:10]} Qxe2 {[%emt 0:00:31]} 32. Rxe2 {[%emt 0:00:05]} Nxd5 {[%emt 0:00:10]} 33. Nd6 {[%emt 0:00:17]} Rb1+ {[%emt 0:00:54]} 34. Kh2 {[%emt 0:00:05]} f6 {[%emt 0:00:16]} 35. Nf5 {[%emt 0:00:31]} R8b7 {[%emt 0:00:32]} 36. Rd2 {[%emt 0:00:13]} Nf4 {[%emt 0:01:45]} 37. g3 {[%emt 0:00:29]} Ng6 {[%emt 0:00:31]} 38. h4 {[%emt 0:00:26]} e4 {[%emt 0:03:24]} 39. Ra8+ {[%emt 0:00:21]} Kh7 {[%emt 0:00:04]} 40. h5 {[%emt 0:00:15]} Ne5 {[%emt 0:00:31]} 41. Rdd8 {[%emt 0:01:12]} Nf3+ {[%emt 0:01:40]} 42. Kg2 {[%emt 0:01:03]} Rg1+ {[%emt 0:00:03]} 43. Kh3 {[%emt 0:00:04]} Rh1+ {[%emt 0:00:04]} 44. Kg4 {[%emt 0:00:14]} Ne5+ {[%emt 0:00:30]} 45. Kf4 {[%emt 0:00:43]} Rxh5 {[%emt 0:02:30]} 46. Rh8+ {[%emt 0:00:00]} Kg6 {[%emt 0:00:00]} 47. Nh4+ {[%emt 0:00:00]} Rxh4+ {[%emt 0:00:00]} 48. gxh4 {[%emt 0:00:00]} Rb2 {[%emt 0:00:00]} 49. Ra7 {[%emt 0:00:00]} Rxf2+ {[%emt 0:00:00]} 50. Kxe4 {[%emt 0:00:00]} Rh2 {[%emt 0:00:00]} 51. Rg8 {[%emt 0:00:00]} Rxh4+ {[%emt 0:00:00]} 52. Kd5 {[%emt 0:00:00]} Nf7 {[%emt 0:00:00]} 53. Rd7 {[%emt 0:00:00]} Rh5+ {[%emt 0:00:00]} 54. Kd4 {[%emt 0:00:00]} Rg5 {[%emt 0:00:00]} 55. Ke3 {[%emt 0:00:00]} Kh7 {[%emt 0:00:00]} 56. Rf8 {[%emt 0:00:00]} Ne5 {[%emt 0:00:00]} 57. Ra7 {[%emt 0:00:00]} Rg6 {[%emt 0:00:00]} 58. Raa8 {[%emt 0:00:00]} Rg3+ {[%emt 0:00:00]} 59. Ke4 {[%emt 0:00:00]} Ng6 {[%emt 0:00:00]} 60. Rf7 {[%emt 0:00:00]} Rg4+ {[%emt 0:00:00]} 61. Ke3 {[%emt 0:00:00]} Ne5 {[%emt 0:00:00]} 62. Rff8 {[%emt 0:00:00]} Nc6 {[%emt 0:00:00]} 63. Rac8 {[%emt 0:00:00]} Ne7 {[%emt 0:00:00]} 64. Kf3 {[%emt 0:00:50]} Rg5 {[%emt 0:00:00]} 65. Rc7 {[%emt 0:01:45]} Rf5+ {[%emt 0:00:00]} 66. Kg4 {[%emt 0:00:35]} h5+ {[%emt 0:00:00]} 67. Kg3 {[%emt 0:00:22]} Re5 {[%emt 0:00:00]} 68. Kf3 {[%emt 0:00:33]} Rf5+ {[%emt 0:00:00]} 69. Ke4 {[%emt 0:00:33]} Rf1 {[%emt 0:00:00]} 70. Rf7 {[%emt 0:00:42]} Nf5 {[%emt 0:00:00]} 71. Kd3 {[%emt 0:00:19]} Kg6 {[%emt 0:00:00]} 72. Ke2 {[%emt 0:00:10]} Rf4 {[%emt 0:00:00]} 73. Rfd7 {[%emt 0:01:58]} h4 {[%emt 0:00:00]} 74. Rd1 {[%emt 0:00:15]} Kh5 {[%emt 0:00:00]} 75. Rg1 {[%emt 0:00:28]} Ng3+ {[%emt 0:00:06]} 76. Ke3 {[%emt 0:00:22]} g5 {[%emt 0:00:10]} 77. Rc2 {[%emt 0:00:56]} Kg4 {[%emt 0:00:05]} 78. Rf2 {[%emt 0:01:33]} f5 {[%emt 0:00:49]} 79. Rxf4+ {[%emt 0:00:26]} gxf4+ {[%emt 0:00:03]} 80. Kf2 {[%emt 0:00:06]} h3 {[%emt 0:00:02]} 81. Ra1 {[%emt 0:01:09]} h2 {[%emt 0:00:04]} 82. Ra8 {[%emt 0:01:00]} h1=N+ {[%emt 0:00:30]} 83. Kg1 {[%emt 0:01:22]} f3 {[%emt 0:00:11]} 84. Ra4+ {[%emt 0:00:25]} Kg5 {[%emt 0:00:07]} 85. Rb4 {[%emt 0:00:54]} f2+ {[%emt 0:00:07]} 86. Kh2 {[%emt 0:00:04]} f1=R {[%emt 0:00:15]} 0-1

[Event "Slovakian ECo-C Extraliga 2024-25"]
[Site "Slovakia"]
[Date "2024.11.23"]
[Round "1.5"]
[White "Meszaros, Casey Ryan"]
[Black "Pacher, Milan"]
[Result "1/2-1/2"]
[ECO "B22"]
[WhiteElo "1952"]
[BlackElo "2310"]
[Annotator "RC"]
[PlyCount "55"]
[EventDate "2024.09.12"]
[EventType "team-tourn"]
[EventCountry "SVK"]
[SourceTitle "playchess.com"]
[Source "ChessBase"]
[SourceQuality "1"]
[TimeControl "5400+30"]

1. e4 {[%emt 0:00:11]} c5 {[%emt 0:00:05]} 2. c3 {[%emt 0:00:17]} e6 {[%emt 0:00:36]} 3. d4 {[%emt 0:00:44]} d5 {[%emt 0:00:06]} 4. exd5 {[%emt 0:05:46]} exd5 {[%emt 0:00:03]} 5. Nf3 {[%emt 0:00:50]} Nc6 {[%emt 0:00:03]} 6. Be3 {[%emt 0:03:06]} cxd4 {[%emt 0:02:18]} 7. Nxd4 {[%emt 0:00:52]} Nf6 {[%emt 0:00:08]} 8. Bb5 {[%emt 0:11:18]} Bd7 {[%emt 0:00:28]} 9. h3 {[%emt 0:02:29]} Bd6 {[%emt 0:01:00]} 10. Nd2 {[%emt 0:00:51]} O-O {[%emt 0:01:17]} 11. Be2 {[%emt 0:06:04]} Re8 {[%emt 0:07:56]} 12. N2f3 {[%emt 0:07:00]} Rxe3 {[%emt 0:04:07]} 13. fxe3 {[%emt 0:03:11]} Bg3+ {[%emt 0:00:05]} 14. Kd2 {[%emt 0:03:23]} Ne4+ {[%emt 0:00:38]} 15. Kc2 {[%emt 0:06:52]} Nf2 {[%emt 0:01:57]} 16. Qd2 {[%emt 0:01:28]} Nxh1 {[%emt 0:00:25]} 17. Rxh1 {[%emt 0:00:15]} Qe7 {[%emt 0:01:41]} 18. Bd3 {[%emt 0:12:30]} g6 {[%emt 0:01:08]} 19. Rf1 {[%emt 0:03:25]} Re8 {[%emt 0:01:25]} 20. Ne2 {[%emt 0:01:15]} Bc7 {[%emt 0:00:35]} 21. Nf4 {[%emt 0:01:14]} Qc5 {[%emt 0:02:02]} 22. Kb1 {[%emt 0:02:53]} Ne5 {[%emt 0:03:08]} 23. Bc2 {[%emt 0:09:37]} Qb5 {[%emt 0:06:15]} 24. Nd3 {[%emt 0:04:04]} Nc4 {[%emt 0:00:23]} 25. Qf2 {[%emt 0:00:40]} Na3+ {[%emt 0:01:14]} 26. Kc1 {[%emt 0:00:38]} Nxc2 {[%emt 0:01:38]} 27. Nd4 {[%emt 0:01:28]} Nxd4 {[%emt 0:02:01]} 28. Qxf7+ {[%emt 0:00:06]} 1/2-1/2

[Event "Slovakian ECo-C Extraliga 2024-25"]
[Site "Slovakia"]
[Date "2024.11.23"]
[Round "1.6"]
[White "Jurcik, Martin"]
[Black "Rucek, Kristian"]
[Result "1/2-1/2"]
[ECO "D32"]
[WhiteElo "2361"]
[BlackElo "2172"]
[Annotator "ChessBase"]
[PlyCount "155"]
[EventDate "2024.09.12"]
[EventType "team-tourn"]
[EventCountry "SVK"]
[SourceTitle "playchess.com"]
[Source "ChessBase"]
[SourceQuality "1"]
[TimeControl "5400+30"]

1. c4 {[%emt 0:00:12]} e6 {[%emt 0:00:38]} 2. Nc3 {[%emt 0:01:24]} d5 {[%emt 0:00:06]} 3. d4 {[%emt 0:00:29]} c5 {[%emt 0:00:50]} 4. cxd5 {[%emt 0:01:44]} exd5 {[%emt 0:00:10]} 5. Nf3 {[%emt 0:00:22]} Nf6 {[%emt 0:00:42]} 6. Bg5 {[%emt 0:01:11]} Be6 {[%emt 0:00:26]} 7. dxc5 {[%emt 0:01:42]} Bxc5 {[%emt 0:03:35]} 8. e3 {[%emt 0:00:37]} O-O {[%emt 0:02:06]} 9. Be2 {[%emt 0:01:15]} Nc6 {[%emt 0:01:21]} 10. O-O {[%emt 0:00:27]} h6 {[%emt 0:20:09]} 11. Bh4 {[%emt 0:02:19]} a6 {[%emt 0:12:53]} 12. Rc1 {[%emt 0:08:55]} Ba7 {[%emt 0:01:49]} 13. Qd3 {[%emt 0:00:42]} g5 {[%emt 0:16:24]} 14. Bg3 {[%emt 0:01:44]} Qe7 {[%emt 0:06:09]} 15. Ne5 {[%emt 0:09:52]} Rfd8 {[%emt 0:04:00]} 16. Nxc6 {[%emt 0:15:41]} bxc6 {[%emt 0:00:05]} 17. b3 {[%emt 0:06:01]} c5 {[%emt 0:04:53]} 18. Na4 {[%emt 0:17:04]} c4 {[%emt 0:05:47]} 19. bxc4 {[%emt 0:00:36]} dxc4 {[%emt 0:00:03]} 20. Qc2 {[%emt 0:00:39]} Rac8 {[%emt 0:01:58]} 21. Nc3 {[%emt 0:02:22]} Qc5 {[%emt 0:07:06]} 22. Qb2 {[%emt 0:07:27]} Bb8 {[%emt 0:02:36]} 23. Na4 {[%emt 0:04:01]} Qe7 {[%emt 0:01:24]} 24. Nb6 {[%emt 0:02:38]} Rc5 {[%emt 0:02:21]} 25. Nxc4 {[%emt 0:05:34]} Bxg3 {[%emt 0:00:10]} 26. hxg3 {[%emt 0:00:05]} Rdc8 {[%emt 0:00:54]} 27. Nd2 {[%emt 0:01:38]} Rxc1 {[%emt 0:00:37]} 28. Rxc1 {[%emt 0:00:02]} Rxc1+ {[%emt 0:00:05]} 29. Qxc1 {[%emt 0:00:06]} Bxa2 {[%emt 0:00:25]} 30. Qc8+ {[%emt 0:00:58]} Kg7 {[%emt 0:01:06]} 31. Qxa6 {[%emt 0:00:15]} Be6 {[%emt 0:00:04]} 32. Qa1 {[%emt 0:01:42]} Kg8 {[%emt 0:01:40]} 33. Qd4 {[%emt 0:00:29]} Nd7 {[%emt 0:01:35]} 34. g4 {[%emt 0:01:15]} Qf6 {[%emt 0:01:14]} 35. Qxf6 {[%emt 0:05:24]} Nxf6 {[%emt 0:00:01]} 36. f3 {[%emt 0:00:08]} Kg7 {[%emt 0:00:02]} 37. Kf2 {[%emt 0:00:20]} Nd7 {[%emt 0:02:16]} 38. Bc4 {[%emt 0:01:03]} Bxc4 {[%emt 0:00:45]} 39. Nxc4 {[%emt 0:00:01]} Nf6 {[%emt 0:00:18]} 40. e4 {[%emt 0:00:29]} Nd7 {[%emt 0:00:54]} 41. Ke3 {[%emt 0:00:58]} Nf8 {[%emt 0:00:00]} 42. Nd6 {[%emt 0:00:00]} Ng6 {[%emt 0:00:00]} 43. Nf5+ {[%emt 0:00:00]} Kh7 {[%emt 0:00:00]} 44. Ng3 {[%emt 0:00:00]} Nf4 {[%emt 0:00:00]} 45. Kf2 {[%emt 0:00:00]} Kg6 {[%emt 0:00:00]} 46. Kf1 {[%emt 0:00:00]} f6 {[%emt 0:00:00]} 47. Kf2 {[%emt 0:00:00]} Nd3+ {[%emt 0:00:00]} 48. Ke2 {[%emt 0:00:00]} Nf4+ {[%emt 0:00:00]} 49. Kf1 {[%emt 0:00:00]} Kf7 {[%emt 0:00:00]} 50. Nh5 {[%emt 0:00:00]} Nd3 {[%emt 0:00:00]} 51. Ke2 {[%emt 0:00:00]} Ne5 {[%emt 0:00:00]} 52. Ke3 {[%emt 0:00:00]} Kg6 {[%emt 0:00:00]} 53. Kd4 {[%emt 0:00:00]} Kf7 {[%emt 0:00:00]} 54. Ng3 {[%emt 0:00:00]} Kg6 {[%emt 0:00:00]} 55. Nf5 {[%emt 0:00:00]} h5 {[%emt 0:00:00]} 56. gxh5+ {[%emt 0:00:21]} Kxh5 {[%emt 0:00:00]} 57. Kd5 {[%emt 0:02:04]} Kg6 {[%emt 0:00:16]} 58. Ke6 {[%emt 0:00:08]} Nd3 {[%emt 0:03:20]} 59. Ne7+ {[%emt 0:00:41]} Kg7 {[%emt 0:00:01]} 60. Nd5 {[%emt 0:00:21]} Ne1 {[%emt 0:01:21]} 61. Nxf6 {[%emt 0:05:07]} Nxg2 {[%emt 0:00:01]} 62. Ng4 {[%emt 0:00:23]} Ne1 {[%emt 0:02:12]} 63. Nh2 {[%emt 0:00:16]} Kg6 {[%emt 0:01:02]} 64. Kd6 {[%emt 0:00:49]} Nd3 {[%emt 0:02:04]} 65. e5 {[%emt 0:01:06]} Nf4 {[%emt 0:01:38]} 66. e6 {[%emt 0:00:38]} Nh5 {[%emt 0:00:01]} 67. Ng4 {[%emt 0:01:37]} Kf5 {[%emt 0:00:42]} 68. e7 {[%emt 0:00:25]} Ng7 {[%emt 0:00:00]} 69. Kd7 {[%emt 0:00:11]} Kf4 {[%emt 0:00:20]} 70. Nf6 {[%emt 0:00:56]} Kxf3 {[%emt 0:00:18]} 71. Nh5 {[%emt 0:00:34]} Nxh5 {[%emt 0:00:01]} 72. Ke6 {[%emt 0:00:22]} Ng7+ {[%emt 0:02:24]} 73. Kf6 {[%emt 0:00:24]} Ne8+ {[%emt 0:00:08]} 74. Kxg5 {[%emt 0:00:07]} Ke4 {[%emt 0:00:05]} 75. Kg6 {[%emt 0:00:11]} Kd5 {[%emt 0:00:16]} 76. Kf7 {[%emt 0:00:08]} Nc7 {[%emt 0:00:08]} 77. e8=N {[%emt 0:00:09]} Nxe8 {[%emt 0:00:03]} 78. Kxe8 1/2-1/2

[Event "Slovakian ECo-C Extraliga 2024-25"]
[Site "Slovakia"]
[Date "2024.11.23"]
[Round "1.6"]
[White "Borhy, Marcell"]
[Black "Castiglione, Mario"]
[Result "1-0"]
[ECO "A05"]
[WhiteElo "2356"]
[BlackElo "2244"]
[Annotator "RC"]
[PlyCount "117"]
[EventDate "2024.09.12"]
[EventType "team-tourn"]
[EventCountry "SVK"]
[SourceTitle "playchess.com"]
[Source "ChessBase"]
[SourceQuality "1"]
[TimeControl "5400+30"]

1. Nf3 {[%emt 0:00:04]} Nf6 {[%emt 0:00:40]} 2. c4 {[%emt 0:00:17]} c6 {[%emt 0:00:37]} 3. g3 {[%emt 0:01:49]} d5 {[%emt 0:00:22]} 4. Bg2 {[%emt 0:00:05]} Bf5 {[%emt 0:05:38]} 5. Qb3 {[%emt 0:02:18]} Qb6 {[%emt 0:04:59]} 6. d3 {[%emt 0:00:13]} Qxb3 {[%emt 0:02:37]} 7. axb3 {[%emt 0:00:08]} e6 {[%emt 0:00:45]} 8. Bd2 {[%emt 0:09:05]} Na6 {[%emt 0:14:02]} 9. Bc3 {[%emt 0:01:02]} Bb4 {[%emt 0:01:29]} 10. Nd4 {[%emt 0:10:14]} Bxc3+ {[%emt 0:08:28]} 11. bxc3 {[%emt 0:23:04]} Nc7 {[%emt 0:03:23]} 12. cxd5 {[%emt 0:01:11]} cxd5 {[%emt 0:00:53]} 13. Nxf5 {[%emt 0:23:52]} exf5 {[%emt 0:03:28]} 14. c4 {[%emt 0:00:02]} a6 {[%emt 0:03:21]} 15. Kd2 {[%emt 0:02:42]} O-O-O {[%emt 0:01:06]} 16. Nc3 {[%emt 0:02:27]} Rhe8 {[%emt 0:04:00]} 17. cxd5 {[%emt 0:03:07]} Nfxd5 {[%emt 0:00:55]} 18. Nxd5 {[%emt 0:00:26]} Nxd5 {[%emt 0:00:07]} 19. Ra5 {[%emt 0:00:29]} Ne7 {[%emt 0:02:11]} 20. b4 {[%emt 0:01:17]} Kc7 {[%emt 0:01:17]} 21. Rc1+ {[%emt 0:03:49]} Kb6 {[%emt 0:00:30]} 22. Rac5 {[%emt 0:02:42]} Rd7 {[%emt 0:00:29]} 23. e3 {[%emt 0:04:00]} Red8 {[%emt 0:00:26]} 24. d4 {[%emt 0:00:06]} Nd5 {[%emt 0:00:30]} 25. R1c4 {[%emt 0:03:49]} g6 {[%emt 0:00:21]} 26. h3 {[%emt 0:02:48]} Nc7 {[%emt 0:00:18]} 27. Rc1 {[%emt 0:01:25]} Ne6 {[%emt 0:02:14]} 28. R5c4 {[%emt 0:00:06]} h5 {[%emt 0:00:29]} 29. h4 {[%emt 0:01:22]} Nc7 {[%emt 0:00:49]} 30. Kd3 {[%emt 0:00:29]} Nb5 {[%emt 0:00:27]} 31. Rc5 {[%emt 0:00:29]} Nc7 {[%emt 0:00:50]} 32. Kc3 {[%emt 0:01:00]} Ne6 {[%emt 0:00:21]} 33. Rc4 {[%emt 0:00:02]} Rc7 {[%emt 0:00:10]} 34. Kd3 {[%emt 0:00:47]} Rcd7 {[%emt 0:00:52]} 35. Kc3 {[%emt 0:00:19]} Rc7 {[%emt 0:00:05]} 36. Kb3 {[%emt 0:00:22]} Rcd7 {[%emt 0:00:17]} 37. R4c3 {[%emt 0:00:54]} Nc7 {[%emt 0:00:47]} 38. R3c2 {[%emt 0:00:18]} Nb5 {[%emt 0:00:41]} 39. Rc5 {[%emt 0:00:44]} Nc7 {[%emt 0:00:23]} 40. Bf3 {[%emt 0:00:33]} Ne6 {[%emt 0:00:06]} 41. R5c3 {[%emt 0:00:00]} Rc7 {[%emt 0:00:00]} 42. Be2 {[%emt 0:00:00]} Rdd7 {[%emt 0:00:00]} 43. f3 {[%emt 0:00:00]} Rxc3+ {[%emt 0:00:00]} 44. Rxc3 {[%emt 0:00:00]} Nc7 {[%emt 0:00:00]} 45. Bc4 {[%emt 0:00:00]} Ne8 {[%emt 0:00:00]} 46. Kc2 {[%emt 0:00:00]} Nd6 {[%emt 0:00:00]} 47. Bd3 {[%emt 0:00:00]} Re7 {[%emt 0:00:00]} 48. Kd2 {[%emt 0:00:00]} a5 {[%emt 0:00:00]} 49. bxa5+ {[%emt 0:00:00]} Kxa5 {[%emt 0:00:00]} 50. Rc5+ {[%emt 0:00:00]} b5 {[%emt 0:00:00]} 51. Rc6 {[%emt 0:00:00]} Rd7 {[%emt 0:00:00]} 52. Kc3 {[%emt 0:00:00]} Ne8 {[%emt 0:00:00]} 53. e4 {[%emt 0:00:00]} fxe4 {[%emt 0:00:00]} 54. fxe4 {[%emt 0:00:00]} Rc7 {[%emt 0:00:00]} 55. Rxc7 {[%emt 0:00:00]} Nxc7 {[%emt 0:00:00]} 56. d5 {[%emt 0:00:00]} b4+ {[%emt 0:00:00]} 57. Kc4 {[%emt 0:01:37]} Ka4 {[%emt 0:00:00]} 58. Bc2+ {[%emt 0:02:57]} Ka3 {[%emt 0:00:00]} 59. e5 {[%emt 0:01:28]} 1-0

[Event "Slovakian ECo-C Extraliga 2024-25"]
[Site "Slovakia"]
[Date "2024.11.23"]
[Round "1.6"]
[White "Stevik, Patrik"]
[Black "Striskova, Lucia"]
[Result "1-0"]
[ECO "A05"]
[WhiteElo "2298"]
[BlackElo "2051"]
[Annotator "RC"]
[PlyCount "41"]
[EventDate "2024.09.12"]
[EventType "team-tourn"]
[EventCountry "SVK"]
[SourceTitle "playchess.com"]
[Source "ChessBase"]
[SourceQuality "1"]
[TimeControl "5400+30"]

1. Nf3 {[%emt 0:00:04]} Nf6 {[%emt 0:00:17]} 2. g3 {[%emt 0:00:04]} g6 {[%emt 0:00:23]} 3. b3 {[%emt 0:00:02]} Bg7 {[%emt 0:00:16]} 4. Bb2 {[%emt 0:00:01]} c5 {[%emt 0:00:57]} 5. c4 {[%emt 0:00:27]} d6 {[%emt 0:01:10]} 6. d4 {[%emt 0:07:03]} Ne4 {[%emt 0:07:41]} 7. Bg2 {[%emt 0:02:52]} Qa5+ {[%emt 0:06:22]} 8. Nfd2 {[%emt 0:01:27]} Nxd2 {[%emt 0:14:47]} 9. Bc3 {[%emt 0:00:27]} Qc7 {[%emt 0:05:38]} 10. Qxd2 {[%emt 0:00:17]} O-O {[%emt 0:00:30]} 11. dxc5 {[%emt 0:03:13]} dxc5 {[%emt 0:00:54]} 12. Bxg7 {[%emt 0:00:28]} Kxg7 {[%emt 0:00:06]} 13. Qe3 {[%emt 0:04:10]} Na6 {[%emt 0:07:13]} 14. O-O {[%emt 0:01:44]} Nb4 {[%emt 0:00:36]} 15. a3 {[%emt 0:00:33]} Na6 {[%emt 0:00:25]} 16. Nc3 {[%emt 0:00:29]} Be6 {[%emt 0:00:41]} 17. Nb5 {[%emt 0:01:53]} Qb8 {[%emt 0:03:51]} 18. Qe4 {[%emt 0:01:20]} Qc8 {[%emt 0:03:09]} 19. Qxb7 {[%emt 0:01:38]} Rb8 20. Qxe7 {[%emt 0:00:26]} Re8 {[%emt 0:00:26]} 21. Qxa7 {[%emt 0:01:15]} 1-0

[Event "Slovakian ECo-C Extraliga 2024-25"]
[Site "Slovakia"]
[Date "2024.11.23"]
[Round "1.6"]
[White "Molnar, Erno"]
[Black "Schwarz, Dusan"]
[Result "1-0"]
[ECO "B78"]
[WhiteElo "2221"]
[BlackElo "2296"]
[Annotator "RC"]
[PlyCount "91"]
[EventDate "2024.09.12"]
[EventType "team-tourn"]
[EventCountry "SVK"]
[SourceTitle "playchess.com"]
[Source "ChessBase"]
[SourceQuality "1"]
[TimeControl "5400+30"]

1. e4 {[%emt 0:00:03]} c5 {[%emt 0:00:12]} 2. Nf3 {[%emt 0:00:06]} d6 {[%emt 0:00:08]} 3. d4 {[%emt 0:00:06]} cxd4 {[%emt 0:00:08]} 4. Nxd4 {[%emt 0:00:12]} Nf6 {[%emt 0:00:09]} 5. Nc3 {[%emt 0:00:08]} g6 {[%emt 0:00:11]} 6. Be3 {[%emt 0:02:05]} Bg7 {[%emt 0:00:13]} 7. f3 {[%emt 0:04:03]} Nc6 {[%emt 0:00:40]} 8. Qd2 {[%emt 0:05:22]} O-O {[%emt 0:00:23]} 9. Bc4 {[%emt 0:01:03]} Bd7 {[%emt 0:00:33]} 10. O-O-O {[%emt 0:01:09]} Rc8 {[%emt 0:00:36]} 11. Bb3 {[%emt 0:02:19]} Ne5 {[%emt 0:00:43]} 12. Kb1 {[%emt 0:00:37]} Nc4 {[%emt 0:00:36]} 13. Bxc4 {[%emt 0:00:08]} Rxc4 {[%emt 0:00:06]} 14. g4 {[%emt 0:00:30]} b5 {[%emt 0:01:38]} 15. b3 {[%emt 0:00:55]} b4 {[%emt 0:01:24]} 16. bxc4 {[%emt 0:00:49]} bxc3 {[%emt 0:00:08]} 17. Qxc3 {[%emt 0:00:33]} Qc7 {[%emt 0:00:32]} 18. Qd3 {[%emt 0:11:33]} Rb8+ {[%emt 0:11:50]} 19. Nb3 {[%emt 0:32:47]} Be6 {[%emt 0:08:59]} 20. Bd4 {[%emt 0:01:59]} a5 {[%emt 0:02:02]} 21. Qc3 {[%emt 0:03:00]} a4 {[%emt 0:14:44]} 22. g5 {[%emt 0:03:30]} Nh5 {[%emt 0:02:51]} 23. Bxg7 {[%emt 0:01:30]} Nxg7 {[%emt 0:00:12]} 24. Ka1 {[%emt 0:03:45]} axb3 {[%emt 0:00:23]} 25. cxb3 {[%emt 0:00:35]} Nh5 {[%emt 0:09:41]} 26. Qe3 {[%emt 0:05:44]} Qa5 {[%emt 0:01:41]} 27. Rc1 {[%emt 0:14:28]} Qe5+ {[%emt 0:03:33]} 28. Kb1 {[%emt 0:00:08]} Nf4 {[%emt 0:04:26]} 29. h4 {[%emt 0:02:02]} d5 {[%emt 0:15:15]} 30. cxd5 {[%emt 0:01:11]} Nxd5 {[%emt 0:01:25]} 31. Rc5 {[%emt 0:02:46]} Rb5 {[%emt 0:02:52]} 32. Rxb5 {[%emt 0:00:48]} Nc3+ {[%emt 0:00:08]} 33. Kc2 {[%emt 0:00:28]} Nxb5 {[%emt 0:00:06]} 34. Rc1 {[%emt 0:00:33]} Bd5 {[%emt 0:08:25]} 35. Kd3 {[%emt 0:00:24]} Be6 {[%emt 0:03:47]} 36. Qc5 {[%emt 0:00:32]} Qb8 {[%emt 0:02:41]} 37. a4 {[%emt 0:00:26]} Nd6 {[%emt 0:01:22]} 38. b4 {[%emt 0:00:13]} Bb3 {[%emt 0:01:47]} 39. e5 {[%emt 0:00:39]} Ne8 {[%emt 0:01:17]} 40. Qc8 {[%emt 0:00:00]} Qxc8 {[%emt 0:00:00]} 41. Rxc8 {[%emt 0:00:00]} Bxa4 {[%emt 0:00:00]} 42. Kc4 {[%emt 0:00:00]} Bd7 {[%emt 0:00:00]} 43. Rd8 {[%emt 0:00:00]} Be6+ {[%emt 0:00:00]} 44. Kc5 {[%emt 0:00:00]} Kf8 {[%emt 0:00:00]} 45. b5 {[%emt 0:00:00]} f6 {[%emt 0:00:00]} 46. b6 {[%emt 0:00:00]} 1-0

[Event "Slovakian ECo-C Extraliga 2024-25"]
[Site "Slovakia"]
[Date "2024.11.23"]
[Round "1.6"]
[White "Kantorik, Marian"]
[Black "Skreko, Igor"]
[Result "1/2-1/2"]
[ECO "A69"]
[WhiteElo "2165"]
[BlackElo "2157"]
[Annotator "RC"]
[PlyCount "49"]
[EventDate "2024.09.12"]
[EventType "team-tourn"]
[EventCountry "SVK"]
[SourceTitle "playchess.com"]
[Source "ChessBase"]
[SourceQuality "1"]
[TimeControl "5400+30"]

1. d4 {[%emt 0:00:03]} Nf6 {[%emt 0:00:10]} 2. c4 {[%emt 0:00:08]} g6 {[%emt 0:00:04]} 3. Nc3 {[%emt 0:00:07]} Bg7 {[%emt 0:00:04]} 4. e4 {[%emt 0:00:33]} d6 {[%emt 0:00:05]} 5. f4 {[%emt 0:00:34]} O-O {[%emt 0:00:07]} 6. Nf3 {[%emt 0:00:07]} c5 {[%emt 0:00:04]} 7. d5 {[%emt 0:00:03]} e6 {[%emt 0:00:05]} 8. Be2 {[%emt 0:00:10]} exd5 {[%emt 0:00:09]} 9. cxd5 {[%emt 0:00:08]} Nbd7 {[%emt 0:00:49]} 10. O-O {[%emt 0:03:56]} Re8 {[%emt 0:00:25]} 11. Nd2 {[%emt 0:13:32]} c4 {[%emt 0:03:12]} 12. e5 {[%emt 0:02:15]} dxe5 {[%emt 0:00:37]} 13. Nxc4 {[%emt 0:01:20]} e4 {[%emt 0:02:14]} 14. Be3 {[%emt 0:01:05]} Bf8 {[%emt 0:09:35]} 15. d6 {[%emt 0:01:56]} a6 {[%emt 0:15:18]} 16. a4 {[%emt 0:00:25]} b6 {[%emt 0:00:36]} 17. f5 {[%emt 0:16:09]} Bb7 {[%emt 0:04:21]} 18. Qb3 {[%emt 0:05:13]} Rb8 {[%emt 0:09:39]} 19. fxg6 {[%emt 0:11:53]} hxg6 {[%emt 0:00:33]} 20. Nxb6 {[%emt 0:10:11]} Nxb6 {[%emt 0:04:01]} 21. Qxb6 {[%emt 0:00:54]} Nd5 {[%emt 0:05:31]} 22. Nxd5 {[%emt 0:02:30]} Bxd5 {[%emt 0:00:04]} 23. Qd4 {[%emt 0:00:54]} Bxd6 {[%emt 0:05:20]} 24. Rad1 {[%emt 0:01:59]} Qh4 {[%emt 0:01:51]} 25. g3 {[%emt 0:06:08]} 1/2-1/2